fUSD/lending_fUSD_20240606
["ID","MTS","AMOUNT","RATE_DAILY","PERIOD"]
[328693340,1717713470383,-23900.0,0.00013739,2]
[328693341,1717713470407,-2678.99,0.00013742,2]
[328693342,1717713470430,-2678.99,0.00013746,2]
[328693343,1717713470453,-2678.99,0.0001375,2]
[328693344,1717713470477,-2678.99,0.00013753,2]
[328693345,1717713470499,-2678.99,0.00013757,2]
[328693346,1717713470521,-2678.99,0.0001376,2]
[328693347,1717713470542,-2678.99,0.00013764,2]
[328693348,1717713470566,-2678.99,0.00013768,2]
[328693349,1717713470589,-2678.99,0.00013771,2]
[328693350,1717713470611,-2678.99,0.00013775,2]
[328693351,1717713470634,-2678.99,0.00013778,2]
[328693352,1717713470656,-2678.99,0.00013782,2]
[328693353,1717713470687,-2678.99,0.00013786,2]
[328693354,1717713470860,-2678.99,0.00013789,2]
[328693355,1717713470884,-2678.99,0.00013793,2]
[328693356,1717713470906,-2678.99,0.00013797,2]
[328693357,1717713470927,-2678.99,0.000138,2]
[328693358,1717713470949,-2678.99,0.00013804,2]
[328693359,1717713470970,-2678.99,0.00013807,2]
[328693360,1717713470992,-1236.75368838,0.00013829,2]
[328693361,1717713471016,-155.0,0.0001383,2]
[328693362,1717713471037,-345.51334506,0.0001383,2]
[328693363,1717713471058,-625.39790229,0.00013831,2]
[328693364,1717713471081,-2006.60849381,0.00013833,2]
[328693365,1717713471107,-11599.63,0.00013834,2]
[328693366,1717713471129,-879.48,0.00013853,2]
[328693367,1717713471151,-150.0,0.00013966,2]
[328693368,1717713471173,-488.52,0.00013968,2]
[328693369,1717713471194,-155.0,0.00013999,2]
[328693370,1717713471220,-1154013.8561948,0.00014,2]
[328693371,1717713471263,251.46384221,0.00013698,2]
[328693372,1717713487456,2751.0,0.00013855,2]
[328693373,1717713491916,759.95,0.00013961,2]
[328693374,1717713506253,603.19,0.00011933,2]
[328693375,1717713550337,155.0,0.00013716,2]
[328693376,1717713574349,155.0,0.000136,2]
[328693377,1717713594346,155.0,0.000136,2]
[328693378,1717713612562,159.65729885,0.000136,2]
[328693379,1717713634300,166.26,0.0001384,2]
[328693381,1717713757974,150.0,0.00033302,30]
[328693382,1717713760233,800.0,0.00013844,2]
[328693384,1717713791550,5730.26,0.00013844,2]
[328693385,1717713870542,250.0,0.00013887,2]
[328693386,1717713885490,439.74,0.00013887,2]
[328693387,1717713943070,250.0,0.00013858,2]
[328693388,1717714039241,1000.94,0.00013844,2]
[328693463,1717714108378,573.03,0.00012401,2]
[328693477,1717714232920,-222.27706808,0.00014184,2]
[328693478,1717714232930,-458.8334922,0.00014196,2]
[328693479,1717714232940,-222.27706795,0.00014222,2]
[328693480,1717714232949,-222.27706795,0.00014259,2]
[328693481,1717714232958,-3265.07798316,0.00014284,2]
[328693482,1717714232970,-1607.86944784,0.00014284,2]
[328693483,1717714232979,-222.27706795,0.00014297,2]
[328693484,1717714232989,-494.9226198,0.00014318,2]
[328693485,1717714232998,-23900.0,0.00014319,2]
[328693486,1717714233008,-222.27706795,0.00014335,2]
[328693487,1717714233017,-222.27706795,0.00014372,2]
[328693488,1717714233026,-3926.35,0.00014384,2]
[328693489,1717714233036,-222.27706795,0.0001441,2]
[328693490,1717714233045,-222.27706795,0.00014448,2]
[328693491,1717714233054,-222.27706795,0.00014485,2]
[328693492,1717714233064,-222.27706795,0.00014523,2]
[328693493,1717714233074,-222.27706795,0.00014561,2]
[328693494,1717714233083,-150.0,0.00014602,2]
[328693495,1717714233092,-150.0,0.00014602,2]
[328693496,1717714233103,-150.0,0.00014603,2]
[328693497,1717714233111,-1486.25397523,0.00014643,2]
[328693498,1717714233120,-155.0,0.00014643,2]
[328693499,1717714233131,-209.59336146,0.00014643,2]
[328693500,1717714233140,-203.72694672,0.00014643,2]
[328693501,1717714233150,-333.84646811,0.00014643,2]
[328693502,1717714233159,-283.84331334,0.00014643,2]
[328693503,1717714233168,-462.26891752,0.00014644,2]
[328693504,1717714233177,-3141.02,0.00014645,2]
[328693505,1717714233187,-573.03,0.00014665,2]
[328693506,1717714233195,-1211.85,0.00014665,2]
[328693507,1717714233205,-732.44,0.00014747,2]
[328693508,1717714233214,-499.99,0.00014747,2]
[328693509,1717714233223,-10419.56,0.00014747,2]
[328693510,1717714233232,-2894.48202305,0.00014848,2]
[328693511,1717714233243,-311.99149,0.0001485,2]
[328693512,1717714233252,-7176.1755,0.000149,2]
[328693513,1717714233262,-354.46847898,0.00014999,2]
[328693514,1717714233271,-310406.04654661,0.00015,2]
[328693515,1717714233288,-458.66396705,0.00015,2]
[328693516,1717714233299,-2614.77220606,0.00015,2]
[328693517,1717714233310,-5837.96354366,0.00015,2]
[328693518,1717714233321,-5336.33133191,0.00015,2]
[328693519,1717714233332,-44331.65623511,0.00015,2]
[328693549,1717714238462,-222.27706795,0.00014599,2]
[328693551,1717714238471,-3193.39045312,0.00015,2]
[328693553,1717714238482,-279.14200755,0.00015,2]
[328693577,1717714238790,-3796.16911817,0.00015,2]
[328693579,1717714238800,-1978.87210189,0.00015,2]
[328693582,1717714238812,-785.92464769,0.00015,2]
[328693583,1717714238824,-669.42707453,0.00015,2]
[328693627,1717714241805,-1587.23197047,0.00015,2]
[328693628,1717714241814,-366.04433269,0.00015,2]
[328693629,1717714241824,-180.55500862,0.00015,2]
[328693630,1717714241833,-2516.16868822,0.00015068,2]
[328693631,1717714243307,-222.27706795,0.00014636,2]
[328693632,1717714243317,-1410.18131178,0.00015068,2]
[328693633,1717714243327,-300.0,0.00015214,2]
[328693634,1717714243336,-174.36,0.00015322,2]
[328693635,1717714243346,-311.99149,0.0001536,2]
[328693636,1717714243355,-11588.39145789,0.000154,2]
[328693637,1717714243369,-4074.75726282,0.000154,2]
[328693638,1717714243379,-800.0,0.00015575,2]
[328693639,1717714243388,-4872.94743095,0.00015704,2]
[328693640,1717714243398,-3926.35,0.00015753,2]
[328693641,1717714243408,-311.99149,0.0001599,2]
[328693642,1717714243421,-210.0,0.00016062,2]
[328693643,1717714243431,-166.26,0.00016147,2]
[328693644,1717714243440,-3926.35,0.00016438,2]
[328693646,1717714243450,-1805.05840051,0.000165,2]
[328693648,1717714243459,-5730.26,0.00016584,2]
[328693650,1717714243469,-300.0,0.00016584,2]
[328693652,1717714243478,-311.9915,0.0001661,2]
[328693653,1717714243488,-179.48,0.00016712,2]
[328693654,1717714243500,-5933.0,0.00016759,2]
[328693655,1717714243510,-573.03,0.00016929,2]
[328693656,1717714243520,-4872.94743095,0.00017123,2]
[328693657,1717714243531,-2988.63,0.00017225,2]
[328693658,1717714243541,-311.99149,0.0001724,2]
[328693659,1717714243550,-800.0,0.00017305,2]
[328693660,1717714243560,-200.0,0.00017364,2]
[328693661,1717714243570,-8209.36626795,0.00017554,2]
[328693662,1717714243582,-5590.93373205,0.00017554,2]
[328693663,1717714243591,-263.25,0.00017761,2]
[328693664,1717714243601,-311.99149,0.0001786,2]
[328693665,1717714243610,-649.34168046,0.00018,2]
[328693666,1717714243621,-19959.54307819,0.00018021,2]
[328693667,1717714243631,-5325.04668538,0.00018021,2]
[328693669,1717714243643,-1119.44073745,0.00018021,2]
[328693670,1717714243653,-299.52170479,0.00018021,2]
[328693671,1717714243663,-10468.90491151,0.0001844,2]
[328693672,1717714243673,-166.26,0.00018454,2]
[328693673,1717714243683,-4872.94743095,0.00018543,2]
[328693674,1717714243692,-800.0,0.00019036,2]
[328693675,1717714243702,-175.235,0.00019175,2]
[328693676,1717714243712,-500.0,0.00019178,2]
[328693677,1717714243721,-500.0,0.00019178,2]
[328693678,1717714243731,-633.87864187,0.00019178,2]
[328693679,1717714243740,-500.0,0.00019178,2]
[328693680,1717714243750,-500.0,0.00019178,2]
[328693681,1717714243759,-500.0,0.00019178,2]
[328693682,1717714243769,-500.0,0.00019178,2]
[328693683,1717714243779,-500.0,0.00019178,2]
[328693684,1717714243789,-500.0,0.00019178,2]
[328693685,1717714243798,-500.0,0.00019178,2]
[328693686,1717714243808,-500.0,0.00019178,2]
[328693687,1717714243817,-500.0,0.00019178,2]
[328693688,1717714243827,-400.0,0.00019178,2]
[328693689,1717714243836,-500.0,0.00019178,2]
[328693690,1717714243846,-500.0,0.00019178,2]
[328693691,1717714243856,-185.11912864,0.00019178,2]
[328693692,1717714243867,-306.66648633,0.00019178,2]
[328693693,1717714243876,-500.0,0.00019178,2]
[328693694,1717714243885,-500.0,0.00019178,2]
[328693695,1717714243894,-500.0,0.00019178,2]
[328693696,1717714244123,-311.9632456,0.00019178,2]
[328693697,1717714244134,-500.0,0.00019178,2]
[328693698,1717714244145,-500.0,0.00019178,2]
[328693699,1717714244155,-500.0,0.00019178,2]
[328693700,1717714244164,-500.0,0.00019178,2]
[328693701,1717714244174,-500.0,0.00019178,2]
[328693702,1717714244185,-500.0,0.00019178,2]
[328693703,1717714244194,-500.0,0.00019178,2]
[328693704,1717714244204,-500.0,0.00019178,2]
[328693705,1717714244214,-500.0,0.00019178,2]
[328693706,1717714244223,-500.0,0.00019178,2]
[328693707,1717714244232,-500.0,0.00019178,2]
[328693708,1717714244242,-500.0,0.00019178,2]
[328693709,1717714244252,-500.0,0.00019178,2]
[328693710,1717714244261,-500.0,0.00019178,2]
[328693711,1717714244270,-500.0,0.00019178,2]
[328693712,1717714244280,-500.0,0.00019178,2]
[328693713,1717714244289,-500.0,0.00019178,2]
[328693714,1717714244299,-500.0,0.00019178,2]
[328693715,1717714244308,-500.0,0.00019178,2]
[328693716,1717714244318,-500.0,0.00019178,2]
[328693717,1717714244327,-500.0,0.00019178,2]
[328693718,1717714244336,-500.0,0.00019178,2]
[328693719,1717714244346,-500.0,0.00019178,2]
[328693720,1717714244357,-500.0,0.00019178,2]
[328693721,1717714244368,-500.0,0.00019178,2]
[328693722,1717714244379,-500.0,0.00019178,2]
[328693723,1717714244388,-500.0,0.00019178,2]
[328693724,1717714244397,-500.0,0.00019178,2]
[328693725,1717714244406,-500.0,0.00019178,2]
[328693726,1717714244416,-500.0,0.00019178,2]
[328693727,1717714244427,-500.0,0.00019178,2]
[328693728,1717714244436,-500.0,0.00019178,2]
[328693729,1717714244448,-500.0,0.00019178,2]
[328693730,1717714244458,-500.0,0.00019178,2]
[328693731,1717714244468,-500.0,0.00019178,2]
[328693732,1717714244477,-500.0,0.00019178,2]
[328693733,1717714244487,-500.0,0.00019178,2]
[328693734,1717714244497,-500.0,0.00019178,2]
[328693735,1717714244507,-500.0,0.00019178,2]
[328693736,1717714244516,-335.51299168,0.00019178,2]
[328693737,1717714244527,-500.0,0.00019178,2]
[328693738,1717714244537,-500.0,0.00019178,2]
[328693739,1717714244547,-25.78012986,0.00019178,2]
[328693740,1717714244605,-474.21987014,0.00019178,2]
[328693742,1717714244614,-500.0,0.00019178,2]
[328693744,1717714244623,-570.0,0.00019178,2]
[328693745,1717714244633,-500.0,0.00019178,2]
[328693746,1717714244642,-500.0,0.00019178,2]
[328693747,1717714244653,-347.45610059,0.00019178,2]
[328693752,1717714246670,-344.83424418,0.000149,2]
[328693753,1717714246679,-152.54389941,0.00019178,2]
[328693754,1717714246689,-500.0,0.00019178,2]
[328693755,1717714246698,-500.0,0.00019178,2]
[328693756,1717714246707,-500.0,0.00019178,2]
[328693757,1717714246716,-500.0,0.00019178,2]
[328693758,1717714246725,-500.0,0.00019178,2]
[328693759,1717714246734,-500.0,0.00019178,2]
[328693760,1717714246744,-500.0,0.00019178,2]
[328693761,1717714246753,-1000.0,0.00019178,2]
[328693762,1717714246762,-1000.0,0.00019178,2]
[328693763,1717714246771,-1000.0,0.00019178,2]
[328693764,1717714246781,-1000.0,0.00019178,2]
[328693765,1717714246790,-1000.0,0.00019178,2]
[328693766,1717714246799,-1000.0,0.00019178,2]
[328693767,1717714246809,-1000.0,0.00019178,2]
[328693768,1717714246818,-1000.0,0.00019178,2]
[328693769,1717714246827,-1000.0,0.00019178,2]
[328693770,1717714246836,-1000.0,0.00019178,2]
[328693771,1717714246845,-1000.0,0.00019178,2]
[328693772,1717714246854,-1000.0,0.00019178,2]
[328693773,1717714246864,-1000.0,0.00019178,2]
[328693774,1717714246874,-1000.0,0.00019178,2]
[328693775,1717714246883,-1000.0,0.00019178,2]
[328693776,1717714246892,-1000.0,0.00019178,2]
[328693777,1717714246901,-1000.0,0.00019178,2]
[328693778,1717714246910,-1000.0,0.00019178,2]
[328693779,1717714246919,-1000.0,0.00019178,2]
[328693780,1717714246929,-1000.0,0.00019178,2]
[328693781,1717714246938,-455.0,0.00019178,2]
[328693782,1717714246947,-573.03,0.00019193,2]
[328693783,1717714246956,-175.235,0.00019261,2]
[328693784,1717714246966,-5730.26,0.00019324,2]
[328693785,1717714246975,-175.235,0.00019349,2]
[328693786,1717714246984,-175.235,0.00019437,2]
[328693787,1717714246993,-439.74,0.00019442,2]
[328693788,1717714247002,-4089.45045617,0.0001945,2]
[328693789,1717714247012,-175.235,0.00019526,2]
[328693790,1717714247021,-200.0,0.00019534,2]
[328693791,1717714247030,-2699.0,0.000196,2]
[328693792,1717714247039,-175.235,0.00019616,2]
[328693793,1717714247048,-175.235,0.00019707,2]
[328693794,1717714247058,-175.235,0.00019798,2]
[328693795,1717714247067,-150.0,0.0001988,2]
[328693796,1717714247076,-175.235,0.00019891,2]
[328693797,1717714247085,-34409.27144458,0.000199,2]
[328693798,1717714247095,-4872.94743095,0.00019963,2]
[328693799,1717714247104,-175.235,0.00019984,2]
[328693800,1717714247114,-812.66537955,0.0002,2]
[328693801,1717714247123,-291.84756359,0.0002,2]
[328693802,1717714247132,-3439.78804131,0.0002,2]
[328693803,1717714247142,-21327.06592963,0.0002,5]
[328693804,1717714247151,-155.0,0.0002,4]
[328693805,1717714247160,-6258.42600459,0.0002,2]
[328693806,1717714247170,-187.42794197,0.0002,2]
[328693807,1717714247179,-155.0,0.0002,2]
[328693808,1717714247191,-1779.11097085,0.0002,2]
[328693809,1717714247204,-155.0,0.0002,2]
[328693810,1717714247217,-497.71766581,0.0002,10]
[328693811,1717714247230,-864.25440509,0.0002,2]
[328693812,1717714247243,-1980.08690757,0.0002,2]
[328693813,1717714247255,-1010.86316582,0.00020099,2]
[328693814,1717714247266,-632.0,0.000201,2]
[328693815,1717714247276,-226.60187199,0.000201,2]
[328693816,1717714247287,-250.0,0.00020428,2]
[328693817,1717714247299,-166.26,0.0002076,2]
[328693818,1717714247310,-800.0,0.00020766,2]
[328693819,1717714247321,-350.0,0.00020976,2]
[328693820,1717714247332,-515.22854138,0.00021329,2]
[328693821,1717714247344,-4872.94743095,0.00021382,2]
[328693822,1717714247355,-573.03,0.00021457,2]
[328693823,1717714247370,-545.54297139,0.00021524,2]
[328693824,1717714247381,-200.0,0.00021704,2]
[328693827,1717714247393,-161.99,0.00021918,2]
[328693829,1717714247407,-250.0,0.00021918,2]
[328693830,1717714247423,-235.91,0.00021918,2]
[328693831,1717714247437,-150.0,0.00021918,2]
[328693832,1717714247450,-790.03320351,0.00022,2]
[328693833,1717714247462,-500.0,0.0002227,2]
[328693834,1717714247472,-200.0,0.0002227,2]
[328693835,1717714247483,-242.8145798,0.00022462,2]
[328693836,1717714247495,-229.98373696,0.00022462,2]
[328693837,1717714247505,-4417.99,0.00022562,2]
[328693838,1717714247516,-14498.13,0.00022562,2]
[328693839,1717714247528,-19401.02880343,0.00022562,2]
[328693840,1717714247549,-623.46658207,0.00022562,2]
[328693841,1717714247563,-9975.4946145,0.00022562,2]
[328693842,1717714247577,-9738.38,0.00022562,2]
[328693843,1717714247588,-4872.94743095,0.00022802,2]
[328693844,1717714247598,-150.0,0.00023367,10]
[328693845,1717714247610,-515.22854138,0.00023471,2]
[328693846,1717714247625,-152.17,0.0002359,2]
[328693847,1717714247638,-6557.31466173,0.000236,2]
[328693848,1717714248020,-443.68712278,0.000236,2]
[328693849,1717714251474,1012.99251351,0.00011781,2]
[328693850,1717714302255,180.60886759,0.00011781,2]
[328693851,1717714313517,365.60448397,0.00011781,2]
[328693852,1717714320175,180.2038629,0.00011781,2]
[328693853,1717714363580,1308.81107975,0.00012,2]
[328693854,1717714365906,5500.62572399,0.00011781,2]
[328693855,1717714374428,295.61917718,0.00011781,2]
[328693856,1717714542230,690.0,0.00033302,30]
[328693857,1717714959921,1850.699999,0.00033302,30]
[328693858,1717715141949,345.0,0.00033303,30]
[328693919,1717715431845,-158.25744131,0.0001447,2]
[328693920,1717715431855,-1489.2883817,0.0001447,2]
[328693921,1717715431866,-150.0,0.0001447,2]
[328693922,1717715431876,-202.45417699,0.0001447,2]
[328693923,1717715431888,-97.54582301,0.0001447,2]
[328693924,1717715431898,-150.0,0.0001447,2]
[328693925,1717715431908,-155.59394761,0.00014473,2]
[328693926,1717715431917,-155.59394756,0.00015587,2]
[328693927,1717715431927,-404.0,0.00015845,2]
[328693928,1717715431938,-158.24628177,0.00015917,2]
[328693929,1717715431950,-51.75371823,0.00015917,2]
[328693930,1717715431959,-155.59394756,0.00016701,2]
[328693931,1717715431969,-179.48,0.00016712,2]
[328693932,1717715431978,-499.99,0.00017534,2]
[328693933,1717715431988,-879.1663347,0.00017534,2]
[328693934,1717715432024,-601.41403316,0.00017534,2]
[328693935,1717715432035,-562.4996314,0.00017534,2]
[328693936,1717715432160,-496.84000074,0.00017534,2]
[328693937,1717715432169,-242.93,0.00017808,2]
[328693938,1717715432179,-577.29365182,0.00017808,2]
[328693939,1717715432191,-270.43870298,0.00017808,2]
[328693940,1717715432202,-1000.0,0.00017808,2]
[328693941,1717715432312,-382.31751455,0.00017808,2]
[328693942,1717715432323,-3255.91013065,0.00017808,2]
[328693943,1717715432333,-155.59394756,0.00017815,2]
[328693944,1717715432343,-155.59394756,0.00018929,2]
[328693945,1717715432352,-411.5495904,0.00019,2]
[328693946,1717715432362,-3079.65238383,0.00019451,2]
[328693947,1717715432374,-42.01265323,0.00019451,2]
[328693948,1717715432385,-600.0,0.000195,2]
[328693949,1717715432395,-22.5646234,0.000195,2]
[328693980,1717715438324,-1000.193365,0.000195,2]
[328694009,1717715442035,-755.21400028,0.000195,2]
[328694022,1717715443326,-532.97471611,0.00017259,2]
[328694023,1717715443337,-1063.02801132,0.000195,2]
[328694024,1717715443346,-864.25440509,0.0002,2]
[328694025,1717715443356,-155.0,0.0002,2]
[328694026,1717715443366,-155.0,0.0002,2]
[328694027,1717715443375,-155.0,0.0002,2]
[328694028,1717715443386,-187.42794197,0.0002,2]
[328694029,1717715443396,-1980.08690757,0.0002,2]
[328694030,1717715443405,-1010.86316582,0.0002,2]
[328694031,1717715443417,-155.0,0.0002,2]
[328694032,1717715443426,-497.71766581,0.0002,10]
[328694033,1717715443437,-6258.42600459,0.0002,2]
[328694034,1717715443447,-155.59394756,0.00020042,2]
[328694035,1717715443459,-226.60187199,0.000201,2]
[328694036,1717715443469,-389.27393017,0.00020108,2]
[328694037,1717715443478,-1000.0,0.0002011,2]
[328694038,1717715443488,-242.24,0.0002085,2]
[328694039,1717715443498,-12144.67224044,0.00020925,2]
[328694044,1717715446013,-620.5,0.00019636,2]
[328694045,1717715446022,-443.495,0.00020925,2]
[328694046,1717715446174,-622.86052377,0.00020925,2]
[328694050,1717715482782,835.1057,0.00033303,30]
[328694056,1717715853946,366.993319,0.0001398,2]
[328694057,1717715864093,193.0,0.00033303,30]
[328694058,1717715954264,3420.42057378,0.00033303,30]
[328694059,1717715964482,1010.84041943,0.00033303,30]
[328694060,1717716068114,2000.0,0.00033304,30]
[328694070,1717716485132,615.11417804,0.00033304,30]
[328694083,1717716632184,-6828.9003,0.00014092,2]
[328694085,1717716632197,-2091.08226398,0.00014092,2]
[328694086,1717716632206,-155.59394756,0.00014093,2]
[328694087,1717716632216,-1794.60705698,0.00014193,2]
[328694088,1717716632225,-532.97471611,0.00014369,2]
[328694089,1717716632235,-282.54791112,0.00014369,2]
[328694090,1717716632245,-266.94315556,0.00014369,2]
[328694091,1717716632255,-389.27393017,0.0001437,2]
[328694092,1717716632264,-155.59394756,0.0001634,2]
[328694093,1717716632273,-387.28559816,0.000164,2]
[328694094,1717716632286,-11355.89140184,0.000164,2]
[328694095,1717716632295,-1805.05840051,0.000165,2]
[328694096,1717716632304,-639.03,0.00017609,2]
[328694097,1717716632314,-499.99,0.000179,2]
[328694098,1717716632323,-358.98,0.000179,2]
[328694099,1717716632333,-649.34168046,0.00018,2]
[328694100,1717716632343,-155.59394756,0.00018588,2]
[328694101,1717716632352,-411.5495904,0.00019,2]
[328694102,1717716632362,-2663.0,0.000195,2]
[328694103,1717716632371,-1000.0,0.00019509,3]
[328694104,1717716632381,-3020.68633253,0.0001953,2]
[328694105,1717716632395,-341.31861389,0.0001953,2]
[328694106,1717716632440,-472.14322502,0.0001953,2]
[328694107,1717716632454,-306.20467746,0.0001953,2]
[328694108,1717716632466,-289.39426598,0.0001953,2]
[328694109,1717716632478,-3646.38,0.0001953,2]
[328694110,1717716632490,-2999.39625018,0.0001953,2]
[328694111,1717716632502,-3197.05711625,0.0001953,2]
[328694112,1717716632513,-389.84087267,0.0001953,2]
[328694113,1717716632525,-711.72882134,0.0001953,2]
[328694114,1717716632537,-896.40832532,0.0001953,2]
[328694115,1717716632573,-299.6900001,0.0001953,2]
[328694116,1717716632586,-2261.76303655,0.0001953,2]
[328694117,1717716632597,-1076.81030007,0.0001953,2]
[328694118,1717716632609,-3991.17816264,0.0001953,2]
[328694119,1717716632620,-321.88,0.00019564,2]
[328694120,1717716632630,-500.0,0.0001959,2]
[328694121,1717716632640,-1000.0,0.00019606,2]
[328694122,1717716632650,-4940.80290218,0.00019611,2]
[328694123,1717716632661,-3415.57845701,0.00019611,2]
[328694124,1717716632672,-5611.20864081,0.00019611,2]
[328694125,1717716632681,-1395.13,0.00019615,2]
[328694126,1717716632691,-250.0,0.00019629,2]
[328694127,1717716632702,-960.03,0.00019631,2]
[328694128,1717716632712,-185.35,0.00019656,2]
[328694129,1717716632721,-2751.0,0.00019656,2]
[328694130,1717716632730,-200.0,0.00019667,2]
[328694131,1717716632741,-226.42,0.00019672,2]
[328694132,1717716632751,-250.0,0.00019688,2]
[328694133,1717716632761,-150.0,0.000197,2]
[328694134,1717716632771,-2807.32,0.00019706,2]
[328694135,1717716632781,-156.1,0.00019816,2]
[328694136,1717716632791,-639.03,0.00019872,2]
[328694137,1717716632801,-500.0,0.00019896,2]
[328694138,1717716632811,-678.11629683,0.0002,5]
[328694139,1717716632820,-488.15101086,0.0002,2]
[328694140,1717716632834,-522.71215496,0.0002,2]
[328694141,1717716632843,-864.25440509,0.0002,2]
[328694142,1717716632853,-155.0,0.0002,2]
[328694143,1717716632863,-155.0,0.0002,2]
[328694144,1717716632873,-6258.42600459,0.0002,2]
[328694145,1717716632882,-1779.11097085,0.0002,2]
[328694146,1717716632892,-155.0,0.0002,2]
[328694147,1717716633048,-187.42794197,0.0002,2]
[328694148,1717716633059,-1940.945401,0.0002,2]
[328694149,1717716633311,-39.14150657,0.0002,2]
[328694150,1717716633322,-497.71766581,0.0002,10]
[328694151,1717716633333,-155.0,0.0002,2]
[328694152,1717716633344,-155.0,0.0002,2]
[328694153,1717716633354,-165.99,0.00020079,2]
[328694154,1717716633364,-226.60187199,0.000201,2]
[328694155,1717716633375,-1000.0,0.00020261,2]
[328694156,1717716633385,-1000.0,0.00020261,2]
[328694157,1717716633397,-737.52386022,0.00020261,2]
[328694158,1717716633446,-262.47613978,0.00020261,2]
[328694159,1717716633458,-288.76534517,0.00020261,2]
[328694160,1717716633471,-711.23465483,0.00020261,2]
[328694161,1717716633481,-1000.0,0.00020261,2]
[328694162,1717716633492,-1000.0,0.00020261,2]
[328694163,1717716633503,-1000.0,0.00020261,2]
[328694164,1717716633513,-754.75638082,0.00020261,2]
[328694165,1717716633526,-245.24361918,0.00020261,2]
[328694166,1717716633536,-433.75638082,0.00020261,2]
[328694167,1717716633551,-566.24361918,0.00020261,2]
[328694168,1717716633560,-133.62898663,0.00020381,2]
[328694169,1717716633574,-382.77767337,0.00020381,2]
[328694170,1717716633584,-790.35,0.00020382,2]
[328694171,1717716633595,-790.35,0.00020388,2]
[328694172,1717716633605,-790.35,0.00020393,2]
[328694173,1717716633614,-257.33052603,0.00020398,2]
[328694181,1717716638152,-533.01947397,0.00020398,2]
[328694182,1717716638162,-193.20602647,0.00020404,2]
[328694183,1717716638173,-597.14397353,0.00020404,2]
[328694184,1717716638183,-790.35,0.00020409,2]
[328694185,1717716638193,-790.35,0.00020414,2]
[328694186,1717716638203,-623.42633479,0.0002042,2]
[328694187,1717716638214,-166.92366521,0.0002042,2]
[328694188,1717716638223,-790.35,0.00020425,2]
[328694189,1717716638232,-198.20094432,0.00020431,2]
[328694190,1717716638244,-437.94556116,0.00020431,2]
[328694191,1717716638255,-154.20349452,0.00020431,2]
[328694192,1717716638265,-512.05768733,0.00020436,2]
[328694193,1717716638327,-278.29231267,0.00020436,2]
[328694194,1717716638336,-790.35,0.00020441,2]
[328694195,1717716638345,-790.35,0.00020447,2]
[328694196,1717716638355,-790.35,0.00020452,2]
[328694197,1717716638364,-167.0,0.00020453,2]
[328694198,1717716638374,-790.35,0.00020457,2]
[328694199,1717716638384,-790.35,0.00020463,2]
[328694200,1717716638393,-790.35,0.00020468,2]
[328694201,1717716638403,-790.35,0.00020473,2]
[328694202,1717716638413,-790.35,0.00020479,2]
[328694203,1717716638423,-790.35,0.00020484,2]
[328694204,1717716638432,-155.0,0.00020537,2]
[328694205,1717716638441,-446.8178927,0.00020538,2]
[328694206,1717716638451,-155.59394756,0.00020835,2]
[328694207,1717716638463,-156.1,0.00020848,2]
[328694208,1717716638475,-209.19889504,0.00020923,2]
[328694209,1717716638485,-155.00086835,0.00020923,2]
[328694210,1717716638495,-272.44855869,0.00020924,2]
[328694211,1717716638505,-1336.3975,0.00020925,2]
[328694212,1717716638515,-300.0,0.00021015,2]
[328694213,1717716638525,-159.82,0.00021308,2]